Cogmind - Beta 13 @@@ ROGUE MODE // 2024.05.31 @ 23:08:17 Player: Heliostats Result: Destroyed by exploding Fusion Modulator Performance ------------- Evolutions (0) 0 Regions Visited (1) 200 Robots Destroyed (9) 45 Value Destroyed (140) 140 Prototype IDs (0) 0 Alien Tech Used (0) 0 Bonus (0) 0 TOTAL SCORE: 385 Bonus ------- None Cogmind --------- Core Integrity 0/250 Matter 167/300 Energy 125/125 System Corruption 0% Temperature Cool (27) Movement Flying (37) Location -10/Materials Parts ------- > --- POWER (1) -------- Light Ion Engine > --- PROPULSION (2) --- Flight Unit Flight Unit > --- UTILITY (2) ------ Improved Terrain Scanner Targeting Computer > --- WEAPON (2) ------- Assault Rifle Light Assault Rifle > --- INVENTORY (5) ---- Light Ion Engine Flight Unit Seismic Detector Grenade Launcher Peak State ------------ > --- POWER ------------ Light Ion Engine > --- PROPULSION ------- Aluminum Leg Aluminum Leg > --- UTILITY ---------- Improved Terrain Scanner Seismic Detector > --- WEAPON ----------- Assault Rifle Light Assault Rifle > --- INVENTORY -------- (None) [Rating: 9] Favorites ----------- Power Light Ion Engine Engine Light Ion Engine Propulsion Aluminum Leg Leg Aluminum Leg Flight Unit Flight Unit Utility Seismic Detector Device Seismic Detector Processor Targeting Computer Weapon Assault Rifle Ballistic Gun Assault Rifle Launcher Grenade Launcher Build | -11 -10 ------- Run | Yrd Mat Slots Evolved . | . . Power . | . . Propulsion . | . . Utility . | . . Weapon . | . . Parts Attached 17 | 7 10 Power 2 | 1 1 Engine 2 | 1 1 Core . | . . Reactor . | . . Propulsion 5 | 2 3 Treads . | . . Leg 2 | 2 . Wheel . | . . Hover . | . . Flight 3 | . 3 Utility 5 | 2 3 Device 3 | 2 1 Storage . | . . Processor 2 | . 2 Hackware . | . . Protection . | . . Artifact . | . . Weapon 5 | 2 3 Energy Gun . | . . Energy Cannon . | . . Ballistic Gun 3 | 2 1 Ballistic Cannon . | . . Launcher 2 | . 2 Special Weapon . | . . Impact Weapon . | . . Slashing Weapon . | . . Piercing Weapon . | . . Special Melee Weapon . | . . Unidentified Prototypes . | . . Parts Lost . | . . Power . | . . Propulsion . | . . Utility . | . . Weapon . | . . Highest Loss Streak . | . . To Critical Strikes . | . . Average Slot Usage (%) 97 | . 97 Engine 12 | . 12 Leg 12 | . 12 Flight 15 | . 15 Device 24 | . 24 Processor 3 | . 3 Ballistic Gun 26 | . 26 Launcher 1 | . 1 Naked Turns . | . . Heaviest Build 8 | 8 8 Greatest Support 20 | 20 20 Greatest Overweight (x) . | . . Average Overweight (x) . | . . Largest Inventory Capacity 5 | 5 5 Average Capacity 5 | 5 5 Most Carried 5 | 5 5 Average Carried 1 | . 2 Final Capacity 5 | 5 5 Final Carried 4 | . 4 Class Distribution -------------------- 76% | Mutant 23% | Scavenger-Mutant Dominant Class ---------------- Mutant | -10/Materials Resources | -11 -10 ----------- Run | Yrd Mat Matter Collected 395 | 168 227 Remotely . | . . Salvage Created 158 | 64 94 Parts 20 | 6 14 Haulers Intercepted . | . . Recyclers Shooed 1 | . 1 Parts Field Recycled . | . . Retrieved Matter . | . . Parts Self-Destructed . | . . Prevented . | . . Kills | -11 -10 ------- Run | Yrd Mat Combat Hostiles Destroyed 5 | . 5 Guns 3 | . 3 AOE 2 | . 2 Classes Destroyed 4 | 1 3 Worker 1 | . 1 Tunneler 3 | 3 . Swarmer 3 | . 3 Grunt 2 | . 2 Best Kill Streak 4 | 1 4 Combat Bots Only 3 | . 3 Max Kills in Single Turn 2 | 1 2 Gunslinging . | . . Exploded 1 | . 1 Melee . | . . Uniques/NPCs Destroyed . | . . Combat | -11 -10 -------- Run | Yrd Mat Hostile Shots Fired 39 | . 39 Missed 8 | . 8 Damage Taken 514 | . 514 Core 263 | . 263 Absorbed by Shields . | . . Core Remaining (%) 100 | 100 . Volleys Fired 35 | 16 19 Largest 2 | 2 2 Hottest 50 | 40 50 Shots Fired 70 | 32 38 Gun 68 | 32 36 Cannon . | . . Launcher 2 | . 2 Special . | . . Kinetic 68 | 32 36 Thermal . | . . Explosive 2 | . 2 Electromagnetic . | . . Robot Hit Streak 5 | 4 5 Robot Miss Streak 5 | 3 5 Penetration Max . | . . Secondary Targets . | . . Shots Hit Robots 33 | 17 16 Core Hits 15 | 6 9 Critical Kills . | . . Critical Parts Destroyed 1 | . 1 Critical Strikes 1 | . 1 Destroy 1 | . 1 Melee Attacks . | . . Impact . | . . Slashing . | . . Piercing . | . . Sneak Attacks . | . . Combat Hostiles . | . . Follow-up Attacks . | . . Damage Inflicted 533 | 188 345 Guns 386 | 188 198 Cannons . | . . Explosions 147 | . 147 Melee . | . . Ramming . | . . Kinetic 386 | 188 198 Thermal . | . . Explosive 147 | . 147 Electromagnetic . | . . Impact . | . . Slashing . | . . Piercing . | . . Highest Corruption . | . . Average Corruption . | . . Corruption Purged . | . . Corruption Blocked . | . . Overload Shots . | . . Overflow Damage . | . . Projectiles . | . . Explosions . | . . Melee . | . . Knockbacks . | . . Impact . | . . Kinetic . | . . Secondary . | . . Self-Inflicted Damage 48 | . 48 Shots 1 | . 1 Rammed . | . . Targets Rammed . | . . Kicked . | . . Crushed . | . . Highest Temperature 19 | . 19 Average Temperature 7 | . 7 Received Heat Transfer 60 | . 60 Siege Activations . | . . Robots Corrupted . | . . Combat Hostiles . | . . Parts Fried . | . . Impact Corruptions . | . . Robots Melted . | . . Combat Hostiles . | . . Parts Melted . | . . Heat Transferred . | . . Parts Sabotaged . | . . Parts Stolen . | . . Parts Stripped . | . . Power Chain Reactions . | . . Alert | -11 -10 ------- Run | Yrd Mat Peak Influence 273 | 15 273 Initial 9 | . 9 Average 64 | 6 91 Maximum Alert Level 1 | . 1 Low Security (%) 83 | 100 75 Level 1 16 | . 24 Level 2 . | . . Level 3 . | . . Level 4 . | . . Level 5 . | . . High Security . | . . Max Security . | . . Squads Dispatched 1 | . 1 Investigation . | . . Extermination . | . . Reinforcement 1 | . 1 Assault . | . . Garrison . | . . Intercept . | . . Searches Triggered . | . . Construction Impeded . | . . Haulers Reinforced . | . . Active Scanning Responses . | . . Cargo Convoy Interrupts . | . . Stealth | -11 -10 --------- Run | Yrd Mat Distress Signals . | . . Communications Jammed . | . . Distress Signals . | . . Times Spotted 14 | . 14 Peak Tracking Total 4 | . 4 Tactical Retreats 1 | . 1 Traps | -11 -10 ------- Run | Yrd Mat Traps Triggered . | . . Indirectly . | . . Trap Hack Attempts . | . . Triggered . | . . Disarmed . | . . Reprogrammed . | . . Reused . | . . Traps Extracted . | . . Installed . | . . Triggered . | . . Machines | -11 -10 ---------- Run | Yrd Mat Machines Disabled 2 | . 2 Max in Single Turn 2 | . 2 Machines Repaired . | . . Machines Dismantled . | . . Machines Sabotaged . | . . Overloaded Fab Kills . | . . Hacking | -11 -10 --------- Run | Yrd Mat Machines Accessed 1 | . 1 Terminals 1 | . 1 Fabricators . | . . Repair Stations . | . . Recycling Units . | . . Scanalyzers . | . . Garrison Access . | . . Total Hacks 2 | . 2 Successful 1 | . 1 Failed 1 | . 1 Catastrophic . | . . Database Lockouts . | . . Manual . | . . Terminals 2 | . 2 Fabricators . | . . Repair Stations . | . . Recycling Units . | . . Scanalyzers . | . . Garrison Access . | . . Terminal Hacks 1 | . 1 Emergency Access Points 1 | . 1 Fabricator Hacks . | . . Repair Station Hacks . | . . Recycling Unit Hacks . | . . Scanalyzer . | . . Garrison Access Hacks . | . . Unauthorized Hacks . | . . Terminals . | . . Fabricators . | . . Repair Stations . | . . Recycling Units . | . . Scanalyzers . | . . Garrison Access . | . . Data Cores Recovered . | . . Used . | . . Hacking Detections 1 | . 1 Full Trace Events . | . . Feedback Events . | . . Feedback Blocked . | . . Robot Schematics Acquired . | . . Robots Built . | . . Authchips . | . . Time . | . . Total Robot Build Rating . | . . Part Schematics Acquired . | . . Parts Built . | . . Authchips . | . . Time . | . . Total Part Build Rating . | . . Parts Repaired . | . . Time . | . . Parts Recycled . | . . Recycled Matter . | . . Retrieved Matter . | . . Retrieved Components . | . . Parts Scanalyzed . | . . Part Schematics Acquired . | . . Parts Damaged . | . . Bothacking | -11 -10 ------------ Run | Yrd Mat Used RIF Installer . | . . Robots Hacked . | . . Non-combat . | . . Combat . | . . Robot Hacks Applied . | . . Relay Couplers Released . | . . Fabnet Peak Effective % . | . . Robots Rewired . | . . Allies Hacked . | . . Hacks Repelled . | . . Allies | -11 -10 -------- Run | Yrd Mat Total Allies . | . . Largest Group . | . . Highest-Rated Group . | . . Highest-Rated Ally . | . . Total Orders . | . . Ally Attacks . | . . Total Damage . | . . Kills . | . . Allies Corrupted . | . . Allies Melted . | . . Intel | -11 -10 ------- Run | Yrd Mat Robot Analysis Total . | . . Derelict Logs Recovered . | . . Drone Launches . | . . Drone Recoveries . | . . Exploration | -11 -10 ------------- Run | Yrd Mat Turns Passed 630 | 202 428 Spaces Moved 499 | 107 392 Core 14 | 14 . Treads . | . . Legs 207 | 93 114 Wheels . | . . Hover . | . . Flight 278 | . 278 Fastest Speed 37 | 50 37 Average Speed 71 | 110 61 Slowest Speed 120 | 120 120 Overloaded Moves . | . . Propulsion Burnouts . | . . Robots Hopped . | . . Cave-ins Triggered . | . . Exploration Rate (%) 25 | 5 46 Regions Visited 1 Branch Regions . Pre-discovered Areas . | . . Known Exits Taken . | . . Unknown Exits Taken 1 | 1 . Scrap Searched . | . . Spaces Dug . | . . Terrain Destroyed 31 | . 31 Melee . | . . Projectile . | . . AOE 31 | . 31 Terrain Rammed . | . . Walls Destroyed . | . . Machines Disabled . | . . Actions | -11 -10 --------- Run | Yrd Mat Total 708 | 161 547 Wait 138 | 25 113 Move 498 | 106 392 Hop . | . . Pick Up 15 | 7 8 Fast Attach . | . . Attach 12 | 7 5 Detach 2 | . 2 Swap 5 | . 5 Drop 3 | . 3 Fire 35 | 16 19 Melee . | . . Ram . | . . Kick . | . . Crush . | . . Escape Stasis . | . . Rewire . | . . Trap . | . . Miscellaneous . | . . Route ------- -11/Scrapyard -10/Materials (discovered 2 exits: [*Mat] / [*Min]) History --------- Turn | Location | Event 7 | -11/Scrapyard | Discovered new exit (range 16) 203 | -11/Scrapyard | Entered Materials 303 | -10/Materials | Build established: Mutant 414 | -10/Materials | Discovered new exit (range 7) 437 | -10/Materials | Discovered new exit (range 16) 631 | -10/Materials | Destroyed by exploding Fusion Modulator Last Messages --------------- 00500_ Nuclear Reactor explodes. 00500_ G-34 Mercenary destroyed. 00504_ Acquired 4 matter. 00504_ Acquired 5 matter. 00505_ Dropped Grenade Launcher. 00511_ The unstable cave ceiling collapses. 00517_ U-05 Engineer lays Concrete. 00521_ U-05 Engineer builds a Door. 00523_ The unstable cave ceiling collapses. 00523_ Acquired Grenade Launcher. 00525_ U-05 Engineer builds a Wall. 00539_ Discarded Targeting Computer. 00545_ Acquired Targeting Computer. 00547_ U-05 Engineer lays Concrete. 00551_ U-05 Engineer builds a Wall. 00552_ The unstable cave ceiling collapses. 00572_ U-05 Engineer builds a Wall. 00631_ Fusion Modulator explodes. 00631_ G-47 Trooper destroyed. 00631_ Fusion Modulator explodes. Map ----- +----------------------------------------------------+ | ? ?? ??????????????# # """ #?? | | ???????????????????# ########?? | | ???????????????????# #????????? | | ???????????????????# #????????? | | ???????#???????#???# #????????? | | #########??????????# #####????? | | #??#????????# # # ###??? | | " #?########### # #### | | "" #?# # # | | "" #?# """ # # # | | """ ###! = """ # = # u # | | "" + + """ #= [# # | | """ ### "" + =! # | | """ #?# "T # # # | | """ #?# "" # # ! # | | " #?# #o # | | #?##+######## # | | #/####### #????# g # # ## | | ##??## # ###? | | #????#g #;;;;;;;## | | #????# ;; # | | # " ##???# ;; # | | # !!! """ #???## ;; # | | # !! """ #?#?# ; # | | # !! """ #???# g! ; | | # "" #???# %;@ # | | # """ #???# ; # | | # "" #??## ; # | | ? ""? #???######; # | | ? "? #???##???## # | | ? ?? #?????????#! # | | ? ??? ??????????######### | | ? ####???????????????????????#? | | # #?????? ?????#?????????#????? | | ????????????????????????????????? | | ???????????????????#????#???????? | | ????????????????????????????????? | | ??? ???????????????????????#????? | | ????#???????????????????#???????? | | ??? ??????????????#?????????????# | | #?????????????????????#??????#??? | | #???? ??????????????????????????? | | #????????????????????????????#??? | | #???????????????????????????????? | | ##??????????????????????????????? | | #??? ???????????????????????????? | | #???#???????????????????????????? | | #???????????????????????????????? | | #???????????????????????????????? | | #???????????????????????????????? | +----------------------------------------------------+ Best States ------------- Heat Dissipation 25 Energy Generation 10 Energy Capacity 125 Matter Stores 300 Matter Capacity 300 Sight Range 16 Terrain Scan Range 16 Terrain Scan Density 10 Evasion (%) 62 Targeting Accuracy 5 Item Schematics ----------------- None Robot Schematics ------------------ None Fabricated ------------ Nothing Alien Tech Used ----------------- None Achievements -------------- None Challenges ------------ None Game ------ Seed Shnookums Manual? 1 Play Time 00:06:52 Cumulative 14.8 hours Start 2024.05.31 @ 23:02:27 End 2024.05.31 @ 23:08:17 Sessions 1 Manual Loads 0 Difficulty Rogue Special Mode None Game No. 24 Rogue 12 Adventurer 12 Explorer 0 Win Type - Total 0 Types 0/0/0/0/0/0/0/0/0 Lore% 18 Gallery% 20 Achievement% 15 Wizard Run 0 Options --------- Layout 1 ASCII 0 Keyboard 0 Movement Mouse Keybinds 0 Fullscreen 2 Font 24/Smallcaps Map View 50x35 Zoom Use 0% Tactical HUD 1 Map Filters NONE Filters NONE Steam 1 RUN: 51a9a628-13c1-4e84-8b03-4ecd6d251dc7